{"text_format":"3","workbook":"xlsx","n_sheets":1,"sheets":["Blodtryk og glukose"],"not_rendered":{"defined_names":9},"read":"whole","date_system":"1900"}

{"sheet":"Blodtryk og glukose","index":0,"n_rows":13,"n_cols":11,"rows_kept":13,"merged":[[0,1,4,3],[0,4,0,9],[1,4,1,6],[1,7,1,9],[3,7,4,7],[3,8,4,8],[3,9,4,9]]}
[null,"Sporing af blodtryk og\nglukose",null,null,"Tilpas skalaværdierne i cellerne E2 til J5 nedenfor."]
[{"$nulls":4},"BLODTRYK",null,null,"GLUCOSESKALA"]
[{"$nulls":4},120,"SYSTOLISK",140,70,100,150]
[{"$nulls":4},80,"DIASTOLISK",90,"LAV","NORMAL","HØJT"]
[{"$nulls":4},"MÅLTRYK",null,"RING TIL LÆGE"]
[null,"Dato","Klokkeslæt","Hændelse","Systolisk","Diastolisk","Puls","Glukose","Niveau","Status","Noter"]
[null,{"$f":"TODAY()","v":"2018-07-04"},"06:00:00","Vågen",129,79,72,55,{"$f":"BlodtrykOgGlukose[[#This Row],[Glukose]]","v":55},{"$f":"IFERROR(IF(BlodtrykOgGlukose[[#This Row],[Niveau]]=0,\"\",IF(BlodtrykOgGlukose[[#This Row],[Niveau]]<=GLavt,\"LAV\",IF(AND(BlodtrykOgGlukose[[#This Row],[Niveau]]>GLavt,BlodtrykOgGlukose[[#This Row],[Niveau]]<GHøjt),\"NORMAL\",\"HØJT\"))), \"\")","v":"LAV"}]
[null,{"$f":"TODAY()","v":"2018-07-04"},"07:00:00","Før måltid",120,80,74,70,{"$f":"BlodtrykOgGlukose[[#This Row],[Glukose]]","v":70},{"$f":"IFERROR(IF(BlodtrykOgGlukose[[#This Row],[Niveau]]=0,\"\",IF(BlodtrykOgGlukose[[#This Row],[Niveau]]<=GLavt,\"LAV\",IF(AND(BlodtrykOgGlukose[[#This Row],[Niveau]]>GLavt,BlodtrykOgGlukose[[#This Row],[Niveau]]<GHøjt),\"NORMAL\",\"HØJT\"))), \"\")","v":"LAV"}]
[null,"2018-07-04","09:00:00","Efter måltid",133,80,75,75,{"$f":"BlodtrykOgGlukose[[#This Row],[Glukose]]","v":75},{"$f":"IFERROR(IF(BlodtrykOgGlukose[[#This Row],[Niveau]]=0,\"\",IF(BlodtrykOgGlukose[[#This Row],[Niveau]]<=GLavt,\"LAV\",IF(AND(BlodtrykOgGlukose[[#This Row],[Niveau]]>GLavt,BlodtrykOgGlukose[[#This Row],[Niveau]]<GHøjt),\"NORMAL\",\"HØJT\"))), \"\")","v":"NORMAL"}]
[null,"2018-07-04","10:00:00","Kun BT",143,91,75,190,{"$f":"BlodtrykOgGlukose[[#This Row],[Glukose]]","v":190},{"$f":"IFERROR(IF(BlodtrykOgGlukose[[#This Row],[Niveau]]=0,\"\",IF(BlodtrykOgGlukose[[#This Row],[Niveau]]<=GLavt,\"LAV\",IF(AND(BlodtrykOgGlukose[[#This Row],[Niveau]]>GLavt,BlodtrykOgGlukose[[#This Row],[Niveau]]<GHøjt),\"NORMAL\",\"HØJT\"))), \"\")","v":"HØJT"}]
[null,"2018-07-04","12:00:00","Før måltid",141,84,70,140,{"$f":"BlodtrykOgGlukose[[#This Row],[Glukose]]","v":140},{"$f":"IFERROR(IF(BlodtrykOgGlukose[[#This Row],[Niveau]]=0,\"\",IF(BlodtrykOgGlukose[[#This Row],[Niveau]]<=GLavt,\"LAV\",IF(AND(BlodtrykOgGlukose[[#This Row],[Niveau]]>GLavt,BlodtrykOgGlukose[[#This Row],[Niveau]]<GHøjt),\"NORMAL\",\"HØJT\"))), \"\")","v":"NORMAL"}]
[null,{"$f":"TODAY()","v":"2018-07-04"},"15:00:00","Efter måltid",132,80,68,90,{"$f":"BlodtrykOgGlukose[[#This Row],[Glukose]]","v":90},{"$f":"IFERROR(IF(BlodtrykOgGlukose[[#This Row],[Niveau]]=0,\"\",IF(BlodtrykOgGlukose[[#This Row],[Niveau]]<=GLavt,\"LAV\",IF(AND(BlodtrykOgGlukose[[#This Row],[Niveau]]>GLavt,BlodtrykOgGlukose[[#This Row],[Niveau]]<GHøjt),\"NORMAL\",\"HØJT\"))), \"\")","v":"NORMAL"},"Tog BT-medicin med måltid"]
[null,"Gennemsnit",null,null,{"$f":"SUBTOTAL(101,BlodtrykOgGlukose[Systolisk])","v":133},{"$f":"SUBTOTAL(101,BlodtrykOgGlukose[Diastolisk])","v":{"v":82.33333333333333,"d":"82"}},{"$f":"SUBTOTAL(101,BlodtrykOgGlukose[Puls])","v":{"v":72.33333333333333,"d":"72"}},{"$f":"SUBTOTAL(101,BlodtrykOgGlukose[Glukose])","v":{"v":103.33333333333333,"d":"103"}}]